fUST/lending_fUST_20250301
["ID","MTS","AMOUNT","RATE_DAILY","PERIOD"]
[354885793,1740776825142,-1014.04337914,0.00038939,114]
[354885794,1740776872680,799.26,0.0003,120]
[354885800,1740776926876,799.26,0.0003,120]
[354885802,1740776946445,799.26,0.0003,120]
[354885803,1740776948140,-6152.75597561,0.00038939,114]
[354885804,1740776961179,-769.47388059,0.00038939,114]
[354885805,1740776961202,-2737.4710134,0.00038949,2]
[354885806,1740776961223,-189.606984,0.00039039,2]
[354885807,1740776961247,-204.02009244,0.000399,8]
[354885808,1740776961271,-204.02009244,0.00041233,9]
[354885809,1740776961293,-7936.27323532,0.00041987,120]
[354885810,1740776961316,-204.02009244,0.00042567,9]
[354885811,1740776961338,-249.48242826,0.00043738,2]
[354885812,1740776961362,-204.02009244,0.000439,9]
[354885813,1740776974468,799.26,0.0003,120]
[354885817,1740776997294,799.26,0.0003,120]
[354885818,1740777000074,2826.18128867,0.0004,2]
[354885819,1740777000096,3302.72966016,0.0004,2]
[354885820,1740777000117,4712.24156186,0.0004,2]
[354885821,1740777000149,4682.5322793,0.0004,2]
[354885827,1740777009514,799.26,0.0003,120]
[354885828,1740777030427,799.27,0.0003,120]
[354885860,1740777037896,-186.66606389,0.00039999,31]
[354885861,1740777037906,-500.0,0.00039999,2]
[354885862,1740777037916,-500.0,0.00039999,31]
[354885863,1740777037926,-179.32349187,0.00039999,31]
[354885864,1740777037935,-500.0,0.00039999,31]
[354885865,1740777037946,-193.8832,0.00039999,31]
[354885866,1740777037955,-500.0,0.00039999,2]
[354885867,1740777037966,-500.0,0.00039999,31]
[354885868,1740777037976,-398.04590194,0.00039999,31]
[354885869,1740777037986,-500.0,0.00039999,31]
[354885870,1740777037995,-500.0,0.00039999,2]
[354885871,1740777038005,-500.0,0.00039999,31]
[354885872,1740777038015,-462.86200028,0.00039999,2]
[354885873,1740777038025,-500.0,0.00039999,31]
[354885874,1740777038034,-67510.25554652,0.0004,2]
[354885875,1740777038044,-500.0,0.00043533,7]
[354885876,1740777038053,-500.0,0.00043533,10]
[354885878,1740777038062,-502.96921869,0.00043533,10]
[354885880,1740777038072,-240.33032724,0.00043533,3]
[354885882,1740777038082,-151.07408773,0.00043533,2]
[354885884,1740777038092,-451.24709908,0.00043533,10]
[354885886,1740777038102,-500.0,0.00043533,10]
[354885888,1740777038111,-500.0,0.00043533,10]
[354885890,1740777038121,-500.0,0.00043533,10]
[354885891,1740777038131,-500.0,0.00043533,10]
[354885892,1740777038141,-500.0,0.00043533,10]
[354885893,1740777038150,-8545.46675713,0.00044781,2]
[354885894,1740777038163,-1500.0,0.00044781,2]
[354885977,1740777043742,-1512.81684643,0.00044781,2]
[354886015,1740777044105,799.25,0.0003,120]
[354886407,1740777150156,1338.52304209,0.0003,10]
[354886408,1740777153463,-150.0,0.00033,2]
[354886409,1740777354136,500.0,0.0003,120]
[354886412,1740777444756,-150.0,0.00033,2]
[354886413,1740777577045,-206.64111637,0.00033,2]
[354886414,1740777577069,-5.94538231,0.00033,2]
[354886415,1740777753731,-150.0,0.00033,2]
[354886417,1740778030154,-200.69573406,0.00033,2]
[354886418,1740778030176,-113.80998594,0.00033,2]
[354886419,1740778036166,-188.83181947,0.00033,2]
[354886420,1740778043164,-150.0,0.00033,2]
[354886421,1740778046413,-150.0,0.00033,2]
[354886422,1740778083185,-150.0,0.00032999,2]
[354886423,1740778107437,6561.49409688,0.00015,3]
[354886424,1740778114665,1509.99999931,0.00023,2]
[354886425,1740778115885,1200.0,0.000145,2]
[354886426,1740778146553,-150.0,0.00032999,2]
[354886431,1740778157094,-340.27583875,0.00033,2]
[354886432,1740778157119,-500.0,0.00033,2]
[354886433,1740778157146,-500.0,0.00033,2]
[354886434,1740778157170,-500.0,0.00033,10]
[354886435,1740778157193,-923.84549636,0.00033,10]
[354886436,1740778157218,-212.586498,0.0003729,2]
[354886437,1740778157246,-176.8763529,0.00037588,2]
[354886438,1740778157268,-500.0,0.00038,120]
[354886439,1740778157292,-4796.41785832,0.00038829,113]
[354886440,1740778157314,-210.06467616,0.000389,8]
[354886441,1740778157336,-177.496321,0.00038929,120]
[354886442,1740778157359,-19237.2900681,0.00038941,2]
[354886443,1740778157381,-210.06467616,0.000409,8]
[354886444,1740778157404,-4796.4178583,0.00041905,120]
[354886445,1740778157425,-791.11181174,0.0004236,28]
[354886446,1740778157447,-591.14,0.0004246,120]
[354886447,1740778157469,-210.06467616,0.000429,9]
[354886448,1740778157491,-791.11181173,0.00043691,28]
[354886449,1740778157513,-3977.82,0.00043835,2]
[354886450,1740778157534,-10332.76145191,0.00044339,2]
[354886451,1740778157561,-9274.85567673,0.00044339,2]
[354886452,1740778157582,-301.54197758,0.00044363,120]
[354886453,1740778157607,-500.0,0.00044363,120]
[354886454,1740778157630,-218.09577781,0.00044363,2]
[354886455,1740778157653,-518.19502999,0.00044363,120]
[354886456,1740778157677,-500.0,0.00044363,120]
[354886457,1740778157699,-259.96860933,0.00044419,2]
[354886458,1740778157722,-175.34945667,0.00044531,71]
[354886459,1740778157744,-432.553,0.00044531,71]
[354886460,1740778157767,-3977.82,0.00044608,2]
[354886461,1740778157896,160.0,0.0004449,2]
[354886491,1740778238189,-3977.82,0.00044824,2]
[354886493,1740778238200,-14269.47104469,0.00044825,2]
[354886494,1740778238210,-210.06467616,0.000449,10]
[354886495,1740778238219,-761.05,0.0004499,30]
[354886496,1740778238230,-8080.722473,0.00045,120]
[354886497,1740778238240,-3977.82,0.00045122,2]
[354886498,1740778238249,-593.33385885,0.00045172,28]
[354886499,1740778238258,-173.31240622,0.00045189,2]
[354886500,1740778238267,-173.31240621,0.00045194,2]
[354886501,1740778238277,-151.0,0.00045272,2]
[354886502,1740778238286,-500.0,0.00045272,2]
[354886503,1740778238295,-500.0,0.00045273,10]
[354886504,1740778238305,-500.0,0.00045273,10]
[354886505,1740778238315,-500.0,0.00045273,10]
[354886506,1740778238324,-500.0,0.00045273,10]
[354886507,1740778238333,-500.0,0.00045273,7]
[354886508,1740778238343,-500.6890078,0.00045273,7]
[354886509,1740778238352,-3977.82,0.00045287,2]
[354886510,1740778238362,-168.68833667,0.00045288,120]
[354886511,1740778238372,-345.16798439,0.00045298,120]
[354886512,1740778238381,-202.12019617,0.00045298,120]
[354886513,1740778238391,-568.45459738,0.00045298,120]
[354886514,1740778238401,-500.0,0.00045298,31]
[354886515,1740778238410,-500.0,0.00045298,120]
[354886516,1740778238421,-500.0,0.00045298,31]
[354886517,1740778238431,-500.0,0.00045298,120]
[354886518,1740778238441,-500.0,0.00045298,31]
[354886519,1740778238451,-500.0,0.00045298,120]
[354886520,1740778238460,-500.0,0.00045298,31]
[354886521,1740778238469,-500.0,0.00045298,120]
[354886522,1740778238479,-219.81460916,0.00045298,31]
[354886523,1740778238488,-500.0,0.00045298,31]
[354886524,1740778238498,-500.0,0.00045298,31]
[354886525,1740778238508,-500.0,0.00045298,120]
[354886526,1740778238517,-500.0,0.00045298,31]
[354886527,1740778238526,-500.0,0.00045298,31]
[354886528,1740778238536,-440.04818072,0.00045298,120]
[354886529,1740778238545,-500.0,0.00045298,120]
[354886530,1740778238554,-3977.82,0.00045298,2]
[354886531,1740778238564,-2125.27732022,0.00045298,2]
[354886532,1740778238576,-1852.54267978,0.00045298,2]
[354886533,1740778238585,-500.0,0.00045299,120]
[354886534,1740778238595,-68098.5115457,0.00045299,35]
[354886535,1740778238604,-251029.80646467,0.00045299,33]
[354886536,1740778238613,-3977.82,0.00045299,2]
[354886537,1740778238622,-3977.82,0.00045299,2]
[354886538,1740778238631,-3977.82,0.00045299,2]
[354886539,1740778238640,-3977.82,0.00045299,2]
[354886540,1740778238649,-3977.82,0.00045299,2]
[354886541,1740778238659,-3977.82,0.00045299,2]
[354886542,1740778238667,-3977.82,0.00045299,2]
[354886543,1740778238680,-3977.82,0.00045299,2]
[354886544,1740778238689,-3977.82,0.00045299,2]
[354886545,1740778238698,-3977.82,0.00045299,2]
[354886546,1740778238707,-3977.82,0.00045299,2]
[354886547,1740778238717,-3977.82,0.00045299,2]
[354886548,1740778238726,-3977.82,0.00045299,2]
[354886549,1740778238735,-3977.82,0.00045299,2]
[354886550,1740778238745,-3977.82,0.00045299,2]
[354886551,1740778238754,-3977.82,0.00045299,2]
[354886552,1740778238764,-3977.96829678,0.00045299,2]
[354886553,1740778238773,-6632.83,0.000453,30]
[354886554,1740778238783,-60613.76992812,0.000453,30]
[354886559,1740778240739,-2420.55114961,0.00045289,10]
[354886574,1740778243517,-125.56644848,0.00045199,2]
[354886638,1740779225100,-212.586498,0.00040409,2]
[354886639,1740779225135,-346.042,0.000452,73]
[354886640,1740779225171,-3080.65939084,0.000452,120]
[354886641,1740779225199,-150.82,0.0004529,2]
[354886642,1740779225231,-150.82,0.0004529,2]
[354886643,1740779225259,-150.82,0.0004529,2]
[354886644,1740779225287,-2388.34131928,0.000453,30]
[354886645,1740779230088,-17167.7839967,0.000453,30]
[354886648,1740779252124,-581.44988342,0.000452,28]
[354886649,1740779252146,-3112.48185491,0.000453,30]
[354886665,1740779432786,-19221.55176716,0.000453,30]
[354886683,1740779438552,-1572.79113383,0.000453,30]
[354886684,1740779438562,-334.74042136,0.000453,30]
[354886685,1740779438592,-429.3894,0.000453,30]
[354886686,1740779438767,-720.00991201,0.000453,30]
[354886738,1740779531028,289.222452,0.00039655,2]
[354886748,1740780427087,-177.496322,0.00040321,120]
[354886749,1740780427110,-2036.0151628,0.00044393,4]
[354886750,1740780427133,-1747.61968903,0.000449,120]
[354886751,1740780432092,-716.90782361,0.000449,120]
[354886752,1740780432113,-151.0,0.00045,120]
[354886753,1740780432137,-783.06796959,0.00045023,2]
[354886757,1740780549141,-1527.0113721,0.00044393,4]
[354886758,1740780584735,1145.2585291,0.00044393,4]
[354886759,1740780629746,858.9438968,0.00044393,4]
[354886783,1740780632852,-207.75090496,0.000449,10]
[354886784,1740780632862,-120.46371355,0.00044932,2]
[354886790,1740780638550,-1248.26140232,0.00044901,2]
[354886794,1740780638666,-18369.99457062,0.00044901,2]
[354886795,1740780638675,-1008.02293905,0.00045,120]
[354886796,1740780638685,-160.0,0.00045039,2]
[354886797,1740780638694,-160.0,0.00045075,2]
[354886798,1740780638703,-276.834,0.000452,73]
[354886799,1740780638713,-6561.6,0.0004529,10]
[354886800,1740780638723,-151.0,0.00045298,2]
[354886801,1740780638732,-233.21643222,0.00045298,2]
[354886802,1740780638741,-34049.25577285,0.000453,35]
[354886803,1740780638750,-125514.90323234,0.000453,37]
[354886804,1740780638760,-4721.56026663,0.000453,30]
[354886805,1740780638769,-2078.97,0.000453,30]
[354886806,1740780638778,-150.0,0.000453,120]
[354886807,1740780638787,-150.0,0.000453,120]
[354886808,1740780638796,-6016.53207192,0.00046,120]
[354886809,1740780638805,-820.98371618,0.00046,2]
[354886810,1740780638815,-240.13,0.000463,120]
[354886811,1740780638824,-150.0,0.000463,120]
[354886812,1740780638833,-207.75090493,0.00046567,10]
[354886813,1740780638842,-466.35302426,0.00046976,15]
[354886814,1740780638851,-151.0,0.00047,26]
[354886815,1740780638860,-5000.0,0.0004703,120]
[354886816,1740780638869,-5000.0,0.0004703,120]
[354886817,1740780638878,-5000.0,0.0004703,120]
[354886818,1740780638887,-5000.0,0.0004703,120]
[354886819,1740780638897,-5000.0,0.0004703,120]
[354886820,1740780638906,-5000.0,0.0004703,120]
[354886821,1740780638915,-5000.0,0.0004703,120]
[354886822,1740780638924,-5000.0,0.0004703,120]
[354886823,1740780638936,-5000.0,0.0004703,120]
[354886824,1740780638946,-5000.0,0.0004703,120]
[354886825,1740780638955,-5000.0,0.0004703,120]
[354886826,1740780638964,-5000.0,0.0004703,120]
[354886827,1740780638975,-5000.0,0.0004703,120]
[354886828,1740780638984,-1862.917642,0.0004703,120]
[354886829,1740780638994,-151.0,0.0004703,120]
[354886830,1740780639003,-151.0,0.0004703,120]
[354886831,1740780639014,-151.0,0.0004703,120]
[354886832,1740780639023,-151.0,0.0004703,120]
[354886833,1740780639032,-151.0,0.0004703,110]
[354886834,1740780639041,-606.117421,0.0004703,120]
[354886835,1740780639050,-264.350173,0.0004703,110]
[354886836,1740780639060,-269.684248,0.0004703,120]
[354886837,1740780639069,-606.117421,0.0004703,120]
[354886838,1740780639078,-246.330403,0.0004703,7]
[354886839,1740780639087,-151.0,0.0004703,120]
[354886840,1740780639097,-151.0,0.0004703,120]
[354886841,1740780639107,-224.733181,0.0004703,120]
[354886842,1740780639116,-224.733181,0.0004703,120]
[354886843,1740780639125,-151.0,0.0004703,120]
[354886844,1740780639135,-151.0,0.0004703,120]
[354886845,1740780639145,-151.0,0.0004703,120]
[354886846,1740780639154,-151.0,0.0004703,120]
[354886847,1740780639164,-151.0,0.0004703,120]
[354886848,1740780639173,-151.0,0.0004703,120]
[354886849,1740780639183,-151.0,0.0004703,120]
[354886850,1740780639192,-151.0,0.0004703,120]
[354886851,1740780639201,-499.832033,0.0004703,120]
[354886852,1740780639211,-499.832033,0.0004703,120]
[354886853,1740780639223,-151.0,0.0004703,120]
[354886854,1740780639232,-317.477936,0.0004703,120]
[354886855,1740780639243,-293.578562,0.00047041,120]
[354886856,1740780639252,-293.578562,0.00047041,120]
[354886857,1740780639262,-151.0,0.00047041,120]
[354886858,1740780639271,-151.0,0.00047041,120]
[354886859,1740780639280,-151.0,0.00047041,120]
[354886860,1740780639289,-151.0,0.00047041,120]
[354886861,1740780639298,-151.0,0.00047041,30]
[354886862,1740780639308,-151.0,0.00047041,30]
[354886863,1740780639317,-178.942971,0.00047041,120]
[354886864,1740780639327,-178.942971,0.00047041,120]
[354886865,1740780639336,-178.942971,0.00047041,120]
[354886866,1740780639346,-178.942971,0.00047041,120]
[354886867,1740780639355,-151.0,0.00047041,120]
[354886868,1740780639365,-151.0,0.00047041,120]
[354886869,1740780639374,-151.0,0.00047041,120]
[354886870,1740780639383,-151.0,0.00047041,120]
[354886871,1740780639393,-152.372761,0.00047041,120]
[354886872,1740780639402,-153.458558,0.00047041,120]
[354886873,1740780639411,-151.0,0.00047041,120]
[354886874,1740780639421,-151.0,0.00047041,120]
[354886875,1740780639431,-151.0,0.00047041,120]
[354886876,1740780639440,-151.0,0.00047041,120]
[354886877,1740780639449,-151.0,0.00047041,120]
[354886878,1740780639459,-151.0,0.00047041,120]
[354886879,1740780639469,-241.862043,0.00047041,120]
[354886880,1740780639478,-301.512511,0.00047041,120]
[354886881,1740780639488,-301.512511,0.00047041,120]
[354886882,1740780639497,-165.409859,0.00047041,120]
[354886883,1740780639507,-301.512511,0.00047041,120]
[354886884,1740780639516,-165.409859,0.00047041,120]
[354886885,1740780639525,-301.512511,0.00047041,120]
[354886886,1740780639534,-165.409859,0.00047041,120]
[354886887,1740780639543,-165.409859,0.00047041,120]
[354886888,1740780639553,-2499.961505,0.00047041,120]
[354886889,1740780639562,-2499.961505,0.00047041,120]
[354886890,1740780639571,-2499.961505,0.00047041,120]
[354886891,1740780639581,-2499.961505,0.00047041,120]
[354886892,1740780639590,-151.0,0.00047041,120]
[354886893,1740780639600,-151.0,0.00047041,120]
[354886894,1740780639610,-151.0,0.00047041,120]
[354886895,1740780639619,-151.0,0.00047041,110]
[354886896,1740780639629,-606.117421,0.00047041,120]
[354886897,1740780639638,-606.117421,0.00047041,120]
[354886898,1740780639648,-151.0,0.00047041,120]
[354886899,1740780639656,-224.733181,0.00047041,120]
[354886900,1740780639666,-224.733181,0.00047041,120]
[354886901,1740780639675,-151.0,0.00047041,120]
[354886902,1740780639685,-151.0,0.00047041,120]
[354886903,1740780639694,-151.0,0.00047041,120]
[354886904,1740780639704,-151.0,0.00047041,120]
[354886905,1740780639714,-151.0,0.00047041,120]
[354886906,1740780639725,-151.0,0.00047041,120]
[354886907,1740780639734,-151.0,0.00047041,120]
[354886908,1740780639744,-151.0,0.00047041,120]
[354886909,1740780639753,-499.832033,0.00047041,120]
[354886910,1740780639763,-499.832033,0.00047041,120]
[354886911,1740780639772,-317.477936,0.00047041,120]
[354886912,1740780639782,-200.0,0.0004718,76]
[354886913,1740780639791,-151.0,0.000472,25]
[354886914,1740780639801,-151.0,0.000473,26]
[354886915,1740780639810,-150.15,0.000473,120]
[354886916,1740780639819,-508.76864793,0.00047386,28]
[354886917,1740780639829,-151.0,0.000475,23]
[354886918,1740780639838,-151.0,0.000476,23]
[354886919,1740780639847,-151.0,0.000476,23]
[354886920,1740780639856,-153.554292,0.00047668,5]
[354886921,1740780639865,-242.175795,0.00047742,120]
[354886922,1740780639875,-151.0,0.000478,24]
[354886923,1740780639885,-151.0,0.000478,21]
[354886924,1740780639894,-151.0,0.000479,26]
[354886925,1740780639903,-151.0,0.000479,29]
[354886926,1740780639913,-500.0,0.00048,2]
[354886927,1740780639922,-397.0,0.00048072,2]
[354886928,1740780639932,-151.0,0.000481,24]
[354886929,1740780639943,-151.0,0.000481,25]
[354886930,1740780639954,-151.0,0.000481,27]
[354886931,1740780639963,-151.0,0.00048142,2]
[354886932,1740780639973,-500.0,0.00048142,2]
[354886933,1740780639983,-397.91821817,0.0004817,120]
[354886934,1740780639992,-241.61758908,0.0004817,120]
[354886935,1740780640001,-500.0,0.0004817,120]
[354886936,1740780640013,-500.0,0.0004817,31]
[354886937,1740780640025,-500.0,0.0004817,120]
[354886938,1740780640035,-500.0,0.0004817,31]
[354886939,1740780640046,-408.03372651,0.0004817,120]
[354886940,1740780640056,-500.0,0.0004817,31]
[354886941,1740780640066,-500.0,0.0004817,120]
[354886942,1740780640075,-500.0,0.0004817,120]
[354886943,1740780640084,-500.0,0.0004817,31]
[354886944,1740780640093,-500.0,0.0004817,31]
[354886945,1740780640102,-453.87022641,0.0004817,31]
[354886946,1740780640111,-222000.0,0.00048171,2]
[354886947,1740780640120,-151.0,0.00048171,120]
[354886948,1740780640130,-151.0,0.00048171,120]
[354886949,1740780640139,-293.578562,0.00048171,120]
[354886950,1740780640149,-293.578562,0.00048171,120]
[354886951,1740780640158,-151.0,0.00048171,120]
[354886952,1740780640167,-151.0,0.00048171,120]
[354886953,1740780640176,-151.0,0.00048171,120]
[354886954,1740780640185,-151.0,0.00048171,120]
[354886955,1740780640195,-151.0,0.00048171,30]
[354886956,1740780640204,-178.942971,0.00048171,120]
[354886957,1740780640213,-178.942971,0.00048171,120]
[354886958,1740780640223,-253.1373,0.00048171,120]
[354886959,1740780640232,-173.261868,0.00048171,120]
[354886960,1740780640242,-151.0,0.00048171,120]
[354886961,1740780640251,-151.0,0.00048171,120]
[354886962,1740780640261,-301.512511,0.00048171,120]
[354886963,1740780640270,-165.409859,0.00048171,120]
[354886964,1740780640279,-301.512511,0.00048171,120]
[354886965,1740780640288,-165.409859,0.00048171,120]
[354886966,1740780640298,-2499.961505,0.00048171,120]
[354886967,1740780640307,-2499.961505,0.00048171,120]
[354886968,1740780640316,-151.0,0.00048171,120]
[354886969,1740780640325,-151.0,0.00048171,120]
[354886970,1740780640334,-151.0,0.00048171,120]
[354886971,1740780640343,-151.0,0.00048171,110]
[354886972,1740780640352,-606.117421,0.00048171,120]
[354886973,1740780640362,-606.117421,0.00048171,120]
[354886974,1740780640371,-151.941241,0.00048171,120]
[354886975,1740780640380,-224.733181,0.00048171,120]
[354886976,1740780640390,-224.733181,0.00048171,120]
[354886977,1740780640399,-151.0,0.00048171,120]
[354886978,1740780640408,-151.0,0.00048171,120]
[354886979,1740780640417,-151.0,0.00048171,120]
[354886980,1740780640427,-151.0,0.00048171,120]
[354886981,1740780640436,-151.0,0.00048171,120]
[354886982,1740780640445,-151.0,0.00048171,120]
[354886983,1740780640455,-151.0,0.00048171,120]
[354886985,1740780640464,-151.0,0.00048171,120]
[354886987,1740780640474,-499.832033,0.00048171,120]
[354886988,1740780640483,-499.832033,0.00048171,120]
[354886989,1740780640492,-508.76864793,0.00048179,28]
[354886990,1740780640502,-151.0,0.000482,21]
[354886991,1740780640512,-151.0,0.000482,23]
[354886994,1740780640700,-55555.0,0.000482,120]
[354886995,1740780640723,-151.0,0.000482,22]
[354886996,1740780640733,-2499.961505,0.000482,120]
[354886997,1740780640743,-2499.961505,0.000482,120]
[354886999,1740780640753,-151.0,0.000482,120]
[354887000,1740780640763,-151.0,0.000482,120]
[354887001,1740780640773,-151.0,0.000482,120]
[354887002,1740780640783,-151.0,0.000482,110]
[354887003,1740780640793,-606.117421,0.000482,120]
[354887004,1740780640803,-606.117421,0.000482,120]
[354887005,1740780640812,-224.733181,0.000482,120]
[354887006,1740780640822,-224.733181,0.000482,120]
[354887007,1740780640831,-151.0,0.000482,120]
[354887008,1740780640841,-185.286262,0.000482,120]
[354887009,1740780640851,-151.0,0.000482,120]
[354887010,1740780640861,-151.0,0.000482,120]
[354887011,1740780640871,-151.0,0.000482,120]
[354887012,1740780640880,-151.0,0.000482,120]
[354887013,1740780640889,-151.0,0.000482,120]
[354887014,1740780640898,-181.462994,0.000482,120]
[354887015,1740780640908,-499.832033,0.000482,120]
[354887016,1740780640918,-499.832033,0.000482,120]
[354887017,1740780640930,-190.54126788,0.00048205,14]
[354887018,1740780640942,-207.75090493,0.00048233,11]
[354887019,1740780640952,-25945.40908634,0.000483,30]
[354887020,1740780641363,-5468.0,0.0004529,10]
[354887021,1740780641373,-317.477936,0.00048171,120]
[354887022,1740780641383,-317.477936,0.000482,120]
[354887023,1740780641393,-2532.70601061,0.000483,30]
[354887043,1740780977045,10000.0,0.0003,2]
[354887057,1740781636120,-1971.62201012,0.00045571,120]
[354887058,1740781636142,-394.9642246,0.0004589,2]
[354887059,1740781642103,-88.94233073,0.0004589,2]
[354887060,1740781642125,-483.90655533,0.00046137,2]
[354887061,1740781642147,-483.90655533,0.00046384,2]
[354887062,1740781642170,-483.90655533,0.0004663,2]
[354887063,1740781642193,-1492.45707894,0.00046824,120]
[354887064,1740781654101,-479.16493117,0.00046824,120]
[354887065,1740781654123,-483.90655533,0.00046877,2]
[354887066,1740781654145,-483.90655533,0.00047123,2]
[354887067,1740781654166,-1275.6566936,0.00047207,4]
[354887068,1740781654188,-200.0,0.0004733,76]
[354887069,1740781654211,-483.90655533,0.0004737,2]
[354887070,1740781654234,-483.90655533,0.00047616,2]
[354887071,1740781654256,-2207.42425877,0.00047696,2]
[354887076,1740781714231,173.261867,0.00023,2]
[354887081,1740781721162,659.64139696,0.00019,2]
[354887140,1740781831927,-912.47400001,0.00046824,120]
[354887149,1740781837827,-2036.19556999,0.00046824,120]
[354887150,1740781837840,-956.7425202,0.00047207,4]
[354887151,1740781837852,-3453.46879957,0.00047548,2]
[354887184,1740781885282,172.962445,0.00043653,2]
[354887196,1740782825137,-153.554292,0.000453,5]
[354887197,1740782825158,-200.0,0.0004679,75]
[354887198,1740782825177,-5000.0,0.00046824,120]
[354887199,1740782825198,-274.72258755,0.00047,120]
[354887200,1740782825218,-717.5568901,0.00047207,4]
[354887201,1740782825238,-848.09400533,0.00047547,2]
[354887202,1740782827098,-303.31190757,0.00047547,2]
[354887203,1740782835118,-4675.18507567,0.00047547,2]
[354887204,1740782882534,-538.1676676,0.00047207,4]
[354887205,1740782882558,-211.9323324,0.00047507,120]
[354887260,1740783032260,-153.554292,0.000453,5]
[354887262,1740783032270,-200.0,0.0004679,75]
[354887264,1740783032280,-403.6257507,0.00047207,4]
[354887266,1740783032290,-16618.94749585,0.00047401,2]
[354887701,1740783038045,-2999.30847709,0.00047401,2]
[354887702,1740783038055,-160.0,0.00047469,2]
[354887703,1740783038066,-2636.96,0.00047505,10]
[354887704,1740783038075,-500.28775693,0.00047506,120]
[354887705,1740783038084,-64677.95161441,0.00047507,37]
[354887706,1740783038094,-971.04087369,0.00047507,120]
[354887707,1740783038104,-17024.62788643,0.00047515,35]
[354887708,1740783038114,-153.554292,0.00047668,5]
[354887709,1740783038124,-350.0,0.00047696,30]
[354887711,1740783038133,-350.0,0.00047696,30]
[354887712,1740783038142,-350.0,0.00047696,30]
[354887715,1740783038152,-350.0,0.00047696,30]
[354887716,1740783038161,-350.0,0.00047696,30]
[354887717,1740783038170,-350.0,0.00047696,30]
[354887718,1740783038181,-350.0,0.00047696,30]
[354887719,1740783038190,-350.0,0.00047696,30]
[354887720,1740783038199,-350.0,0.00047696,30]
[354887721,1740783038209,-350.0,0.00047696,30]
[354887722,1740783038219,-350.0,0.00047696,30]
[354887723,1740783038228,-350.0,0.00047696,30]
[354887724,1740783038237,-350.0,0.00047696,30]
[354887725,1740783038248,-350.0,0.00047696,30]
[354887726,1740783038257,-350.0,0.00047696,30]
[354887727,1740783038267,-350.0,0.00047696,30]
[354887728,1740783038276,-350.0,0.00047696,30]
[354887729,1740783038285,-350.0,0.00047696,30]
[354887730,1740783038296,-350.0,0.00047696,30]
[354887731,1740783038307,-350.0,0.00047696,30]
[354887732,1740783038317,-350.0,0.00047696,30]
[354887733,1740783038327,-350.0,0.00047696,30]
[354887734,1740783038336,-350.0,0.00047696,30]
[354887735,1740783038347,-350.0,0.00047696,30]
[354887736,1740783038357,-350.0,0.00047696,30]
[354887737,1740783038367,-350.0,0.00047696,30]
[354887738,1740783038376,-350.0,0.00047696,30]
[354887739,1740783038386,-350.0,0.00047696,30]
[354887740,1740783038396,-350.0,0.00047696,30]
[354887741,1740783038406,-350.0,0.00047696,30]
[354887742,1740783038416,-350.0,0.00047696,30]
[354887743,1740783038425,-350.0,0.00047696,30]
[354887744,1740783038436,-350.0,0.00047696,30]
[354887745,1740783038446,-350.0,0.00047696,30]
[354887746,1740783038456,-350.0,0.00047696,30]
[354887747,1740783038465,-350.0,0.00047696,30]
[354887748,1740783038475,-350.0,0.00047696,30]